[Event "FIDE WY-U16 Olympiad 2022"]
[Site "Nakhchivan"]
[Date "2022.10.06"]
[Round "5.16"]
[White "Sustov, Savva"]
[Black "Potgieter, Edward"]
[Result "1-0"]
[ECO "C88"]
[WhiteElo "1957"]
[BlackElo "1567"]
[Annotator "TA"]
[PlyCount "61"]
[EventDate "2022.10.02"]
[EventType "team-tourn"]
[EventCountry "AZE"]
[SourceTitle "playchess.com"]
[Source "ChessBase"]
[SourceQuality "1"]
[WhiteTeam "Moldova"]
[BlackTeam "South Africa"]
[WhiteTeamCountry "MDA"]
[BlackTeamCountry "RSA"]
[TimeControl "40/5400+30:1800+30"]

{[%evp 19,61,11,27,32,37,37,37,30,31,34,38,-24,-23,-25,2,0,14,16,14,17,16,14,22,22,45,50,50,37,31,30,33,33,41,35,79,0,0,0,28,26,27,19,34,19]} 1. e4 {[%emt 0:00:03] ChessBase II} e5 {[%emt 0:00:09]} 2. Nf3 {[%emt 0:00:04]} Nc6 {[%emt 0:00:04]} 3. Bb5 {[%emt 0:00:06][%cal Bf1b5,Bb5a4,Ba4b3][%mdl 32]} a6 {[%emt 0:00:04]} 4. Ba4 {[%emt 0:00:04]} Nf6 {[%emt 0:00:05]} 5. O-O {[%emt 0:00:12]} Be7 {[%emt 0:00:06]} 6. Re1 {[%emt 0:00:06]} b5 {[%emt 0:00:04]} 7. Bb3 {[%emt 0:00:05]} O-O {[%emt 0:00:06]} 8. a4 {[%emt 0:00:20]} b4 {[%emt 0:00:05]} 9. d4 {[%emt 0:00:09]} d6 {[%emt 0:01:41]} 10. dxe5 {[%emt 0:00:08]} dxe5 {[%emt 0:00:07]} 11. Nbd2 {[%emt 0:00:28] C88: Closed Ruy Lopez: Anti-Marshall Systems.} Bc5 {[%emt 0:03:20]} 12. a5 {[%emt 0:02:21]} Bb7 {[%emt 0:20:09]} 13. Qe2 {[%emt 0:13:00]} Nd4 {[%emt 0:14:20]} 14. Nxd4 {[%emt 0:05:35] [#]} Qxd4 $146 {[%emt 0:01:02]} ({Predecessor:} 14... Bxd4 15. Qf3 Kh8 16. c3 Ba7 17. Bc2 Ne8 18. Qh3 Rb8 19. Nc4 b3 20. Bd3 f6 {½-½ (33) Motylev,A (2685)-Durarbayli,V (2584) Shamkir 2014 CBM 160 [ChessBase II]}) 15. c3 {[%emt 0:17:29]} ({White should try} 15. Bc4 $14) 15... bxc3 $11 {[%emt 0:06:55]} 16. bxc3 {[%emt 0:01:53]} Qd7 {[%emt 0:09:14]} (16... Qxc3 {feels hotter.} 17. Ba3 Rfd8 18. Rec1 Bxf2+ 19. Qxf2 Qxd2 20. Bxf7+ Kxf7 21. Rxc7+ Kg8) 17. Qc4 {[%emt 0:05:58]} Qb5 {[%emt 0:07:15]} 18. Ba3 {[%emt 0:09:45]} Qxc4 {[%emt 0:07:12]} 19. Bxc4 {[%emt 0:00:59]} Bxa3 {[%emt 0:00:20]} 20. Rxa3 {[%emt 0:00:02]} Rfd8 {[%emt 0:00:34]} 21. Ra2 {[%emt 0:03:01]} Rd6 {[%emt 0:03:53]} 22. Rb2 {[%emt 0:06:54]} Bc6 {[%emt 0:04:50]} 23. f3 {[%emt 0:02:01]} Nd7 {[%emt 0:07:36]} 24. Nf1 {[%emt 0:02:22]} Nc5 {[%emt 0:02:22]} 25. Reb1 {[%emt 0:01:13]} Rad8 {[%emt 0:02:13]} 26. Ne3 {[%emt 0:02:00]} g6 {[%emt 0:05:15]} 27. Nd5 {[%emt 0:04:12]} (27. Ng4 $16) 27... Bxd5 {[%emt 0:01:54]} 28. Bxd5 {[%emt 0:00:11]} c6 {[%emt 0:01:39]} 29. Bc4 {[%emt 0:01:13]} Rd1+ {[%emt 0:00:36]} 30. Bf1 {[%emt 0:03:07]} Na4 {[%emt 0:01:26][%csl LRb2,LRc3] Inhibits Rb6.} 31. Rb8 {[%emt 0:06:57][%mdl 32768] Weighted Error Value: White=0.12 (very precise) /Black=0.09 (flawless) . Loss on time!?} 1-0

[Event "FIDE WY-U16 Olympiad 2022"]
[Site "Nakhchivan"]
[Date "2022.10.06"]
[Round "5.16"]
[White "Caballero Ramos, Greter"]
[Black "Alagoz, Zumra Meryem"]
[Result "1-0"]
[ECO "B35"]
[WhiteElo "1912"]
[BlackElo "1800"]
[Annotator "TA"]
[PlyCount "71"]
[EventDate "2022.10.02"]
[EventType "team-tourn"]
[EventCountry "AZE"]
[SourceTitle "playchess.com"]
[Source "ChessBase"]
[SourceQuality "1"]
[WhiteTeam "Cuba"]
[BlackTeam "Turkey"]
[WhiteTeamCountry "CUB"]
[BlackTeamCountry "TUR"]
[TimeControl "40/5400+30:1800+30"]

{[%evp 14,71,4,10,33,8,11,0,0,7,31,0,2,1,3,-85,-82,-72,-78,-71,-72,-90,-81,-122,-87,-111,-105,-155,-100,-115,-109,-106,-57,-68,-69,-63,-22,-41,0,-177,-161,-191,-190,-202,-54,-65,-55,-50,67,0,138,162,833,803,787,776,2014,1532,29991,29990]} 1. e4 {[%emt 0:00:03]} c5 {[%emt 0:00:02]} 2. Nf3 {[%emt 0:00:10]} Nc6 {[%emt 0:00:04]} 3. d4 {[%emt 0:00:13]} cxd4 {[%emt 0:00:01]} 4. Nxd4 {[%emt 0:00:10]} g6 {[%emt 0:00:02]} 5. Nc3 {[%emt 0:00:13]} Bg7 {[%emt 0:00:02]} 6. Be3 {[%emt 0:00:07]} Nf6 {[%emt 0:00:17]} 7. Bc4 {[%emt 0:00:14]} O-O {[%emt 0:00:11]} 8. Bb3 {[%emt 0:00:07]} Re8 {[%emt 0:00:22] B35: Sicilian: Accelerated Dragon with 5 Nc3: main line.} 9. f3 {[%emt 0:00:42]} e6 {[%emt 0:00:06][%cal Be7e6,Be6e5][%mdl 32]} 10. Qd2 {[%emt 0:13:16]} d5 {[%emt 0:00:21] The position is equal.} 11. O-O-O $1 {[%emt 0:00:31] 11.0-0-0 scores better than 11.exd5.} Nxd4 {[%emt 0:00:22]} 12. Bxd4 {[%emt 0:01:39] Strongly threatening exd5.} e5 {[%emt 0:00:11]} 13. Bf2 {[%emt 0:01:43][%cal Re4d5]} d4 {[%emt 0:00:04]} 14. Nd5 {[%emt 0:02:04] Prevents Qc7.} (14. Ne2 $11) 14... Nxd5 {[%emt 0:00:12]} 15. Bxd5 {[%emt 0:08:19]} Be6 {[%emt 0:00:19]} 16. Bxe6 {[%emt 0:00:05]} Rxe6 {[%emt 0:00:06]} 17. Kb1 {[%emt 0:00:08]} Rc8 {[%emt 0:00:23] [#]} 18. Rhe1 $146 {[%emt 0:11:45]} (18. h4) ({Predecessor:} 18. Rc1 Qd7 19. c3 Rec6 20. cxd4 exd4 21. Rhd1 Rxc1+ 22. Rxc1 Rxc1+ 23. Qxc1 d3 24. Qd2 {0-1 (39) Ondrus,M (2261)-Smieszek,W (2185) Katowice 2017}) 18... Rec6 {[%emt 0:12:12] Inhibits c3.} 19. Rc1 {[%emt 0:03:38]} Qb6 {[%emt 0:07:14]} 20. Red1 {[%emt 0:17:42]} (20. c3 $142) 20... Qb5 {[%emt 0:10:34]} (20... Rc3 $142 $1 {White must now prevent ...R8c6.} 21. Bh4 Bf8) 21. Qd3 {[%emt 0:00:53]} Qa4 {[%emt 0:03:26] aiming for ...Bh6.} 22. Be1 {[%emt 0:02:38]} Bf8 {[%emt 0:04:27]} (22... Ra6 23. Qb3 $15) ({Better is} 22... Bh6 $17 23. Bd2 Bxd2 24. Rxd2 Qa5) 23. Qb3 $15 {[%emt 0:03:15]} Qa6 {[%emt 0:00:49]} 24. Qd3 $1 {[%emt 0:00:04]} b5 {[%emt 0:03:57]} 25. Bd2 {[%emt 0:04:32]} Rc4 {[%emt 0:06:09]} 26. Rf1 $2 {[%emt 0:02:19]} (26. h4 $11 {and White stays safe.}) 26... Ra4 $1 $19 {[%emt 0:04:57]} 27. Qb3 {[%emt 0:00:08]} Rcc4 $1 {[%emt 0:05:24]} 28. Rcd1 {[%emt 0:10:50][%cal Bc1d1,Bd1d2,Bd2d3][%mdl 32] [#]} Bb4 {[%emt 0:03:30]} (28... Rxa2 $1 $19 {[%mdl 512] ( -> ...Ra1#)} 29. Qxa2 Ra4 30. Qxa4 bxa4) 29. f4 {[%emt 0:00:09]} Bxd2 {[%emt 0:00:19]} 30. Rxd2 {[%emt 0:00:01]} Rab4 {[%emt 0:02:08]} (30... Rcb4 $15 31. Qd5 {[#]} Rxb2+ $1 32. Kxb2 Rb4+ 33. Qb3 (33. Ka1 Qa3 $17) 33... Rxb3+ 34. axb3 Qc6) 31. Qh3 {[%emt 0:00:24]} (31. Qf3 $14) 31... Rc3 {[%emt 0:10:15]} (31... Ra4 $1 $11 {remains equal.} 32. a3 (32. Qd7 $2 Rxa2 33. Qe8+ Kg7 $19) 32... exf4) 32. Qd7 $16 {[%emt 0:07:31]} Rxb2+ $2 {[%emt 0:21:12]} (32... Qa3 $2 33. b3 Rcxb3+ 34. axb3 $18) (32... Qc8 33. Qe7 (33. Qxa7 Ra4 $11) (33. Qxc8+ Rxc8 34. b3 d3 $16) 33... a5) 33. Kxb2 $18 {[%emt 0:00:29]} Qa3+ {[%emt 0:00:12]} 34. Ka1 {[%emt 0:00:15]} Rc4 {[%emt 0:00:55]} 35. Rd3 {[%emt 0:03:23]} Qa4 {[%emt 0:00:10]} 36. fxe5 {[%emt 0:02:19] Weighted Error Value: White=0.30/Black=0.50} 1-0

[Event "FIDE WY-U16 Olympiad 2022"]
[Site "Nakhchivan"]
[Date "2022.10.06"]
[Round "5.17"]
[White "Tarhan, Adar"]
[Black "Nemsadze, Daviti"]
[Result "1-0"]
[ECO "B42"]
[WhiteElo "2320"]
[BlackElo "2012"]
[Annotator "TA"]
[PlyCount "79"]
[EventDate "2022.10.02"]
[EventType "team-tourn"]
[EventCountry "AZE"]
[SourceTitle "playchess.com"]
[Source "ChessBase"]
[SourceQuality "1"]
[WhiteTeam "Turkey"]
[BlackTeam "Georgia"]
[WhiteTeamCountry "TUR"]
[BlackTeamCountry "GEO"]
[TimeControl "40/5400+30:1800+30"]

{[%evp 9,79,29,45,40,47,37,45,38,34,46,38,24,6,2,0,0,0,0,0,0,-14,-11,-18,-11,-17,-13,-15,-18,-16,-43,-41,-88,-95,-79,-11,-10,-9,-6,0,0,0,0,0,0,587,529,512,271,242,197,1313,982,29991,29991,29991,29992,29992,29993,29993,29984,29989,29985,2875,2184,2119,1938,1786,1750,1452,1348,1582,1463]} 1. e4 c5 {[%emt 0:00:10]} 2. Nf3 {[%emt 0:00:16]} e6 {[%emt 0:00:13]} 3. d4 {[%emt 0:00:06]} cxd4 {[%emt 0:00:04]} 4. Nxd4 {[%emt 0:00:05]} a6 {[%emt 0:00:02]} 5. Bd3 {[%emt 0:00:07]} Ne7 {[%emt 0:00:18]} 6. O-O {[%emt 0:01:21] B42: Sicilian: Kan Variation: 5 Bd3.} g6 {[%emt 0:00:07]} 7. c4 {[%emt 0:02:59]} Bg7 {[%emt 0:00:32]} 8. Nb3 {[%emt 0:02:17] White is slightly better.} O-O {[%emt 0:00:17]} 9. Nc3 {[%emt 0:00:15]} Nbc6 {[%emt 0:16:23] [#]} 10. Re1 $146 {[%emt 0:02:51]} ({Predecessor:} 10. Bf4 d5 11. exd5 exd5 12. c5 b6 13. Bd6 bxc5 14. Bxc5 Re8 15. Re1 Rb8 16. Qd2 {½-½ (29) Saric,I (2695)-Kamsky,G (2666) St Petersburg 2018}) 10... d5 {[%emt 0:11:04]} 11. exd5 {[%emt 0:01:35]} exd5 {[%emt 0:00:03]} 12. Bg5 {[%emt 0:01:17] Nxd5 is the strong threat.} h6 {[%emt 0:02:22]} 13. Bxe7 {[%emt 0:07:10]} Nxe7 {[%emt 0:00:05]} 14. Qe2 {[%emt 0:00:21]} d4 {[%emt 0:03:57]} 15. Na4 {[%emt 0:03:04]} Nc6 {[%emt 0:02:31][%cal Be7c6,Bc6b4,Bb4d3][%mdl 32]} 16. c5 {[%emt 0:01:45]} Nb4 {[%emt 0:01:02]} 17. Nb6 {[%emt 0:07:04]} Nxd3 {[%emt 0:00:15]} 18. Qxd3 {[%emt 0:00:08]} Bf5 {[%emt 0:00:10]} 19. Qf3 {[%emt 0:00:34]} Rb8 {[%emt 0:00:10]} 20. Nd5 {[%emt 0:04:49]} (20. Rac1 $15) 20... Re8 $17 {[%emt 0:01:19]} 21. h3 {[%emt 0:03:51]} Bd7 {[%emt 0:07:16]} (21... Rc8 $17) 22. Rxe8+ $1 $11 {[%emt 0:01:53]} Bxe8 {[%emt 0:00:15]} 23. Qe4 {[%emt 0:13:43]} Kh7 {[%emt 0:09:38] And now ...Bc6 would win.} 24. Nxd4 {[%emt 0:02:28]} f5 {[%emt 0:00:45][%mdl 64] [#] Deflection} 25. Qe6 {[%emt 0:00:20][%cal Od5e7] Hoping for Ne7!} ({Don't go for} 25. Qf4 $2 Rc8 26. Nb6 Rxc5 $19) 25... Bxd4 {[%emt 0:08:30]} 26. Ne7 {[%emt 0:00:14][%csl Ge7][%cal Re6g8]} Kg7 {[%emt 0:01:07][%mdl 8192]} (26... h5 $11 {and Black stays safe.} 27. Re1 Kg7 28. Qg8+ Kh6) 27. Qg8+ $18 Kf6 {[%emt 0:00:53] [#]} 28. Nd5+ $1 {[%emt 0:01:16]} Kg5 {[%emt 0:00:04] White must now prevent ...Bc6.} 29. Rd1 {[%emt 0:00:10]} Bxc5 {[%emt 0:15:48]} (29... Bc6 30. Rxd4 Qxd5 31. Qxd5 Bxd5 32. Rxd5 a5) 30. g3 {[%emt 0:12:32][%cal Bg2g3,Bg3g4][%mdl 32] Threatening mate with Qe6.} Qc8 {[%emt 0:02:17] Inhibits Qe6.} 31. h4+ {[%emt 0:00:49]} Kg4 {[%emt 0:00:12]} 32. Kg2 {[%emt 0:00:08][%cal Rd5f6]} f4 {[%emt 0:00:50]} 33. f3+ {[%emt 0:00:23]} Kf5 {[%emt 0:00:01]} 34. g4+ {[%emt 0:00:05]} Ke5 {[%emt 0:00:04]} 35. Qg7+ {[%emt 0:00:03]} Kd6 {[%emt 0:00:35]} 36. Qf6+ {[%emt 0:02:06] White is clearly winning.} Kd7 {[%emt 0:00:23]} 37. Ne7+ {[%emt 0:00:33]} Kc7 {[%emt 0:00:06]} 38. Nxc8 {[%emt 0:00:26]} Rxc8 {[%emt 0:00:04]} 39. Rc1 {[%emt 0:00:06]} Kd7 {[%emt 0:00:12]} 40. Qg7+ {[%emt 0:00:49] Weighted Error Value: White=0.09 (flawless) /Black=0.44} 1-0

[Event "FIDE WY-U16 Olympiad 2022"]
[Site "Nakhchivan"]
[Date "2022.10.06"]
[Round "5.17"]
[White "Chen, Max"]
[Black "Seyid, Huseyn"]
[Result "0-1"]
[ECO "B22"]
[WhiteElo "2154"]
[BlackElo "2125"]
[Annotator "TA"]
[PlyCount "84"]
[EventDate "2022.10.02"]
[EventType "team-tourn"]
[EventCountry "AZE"]
[SourceTitle "playchess.com"]
[Source "ChessBase"]
[SourceQuality "1"]
[WhiteTeam "Canada"]
[BlackTeam "Azerbaijan"]
[WhiteTeamCountry "CAN"]
[BlackTeamCountry "AZE"]
[TimeControl "40/5400+30:1800+30"]

{[%evp 14,84,0,0,0,-4,-6,-5,-10,-11,-9,-18,-22,-16,0,-28,-31,-26,-26,-63,-77,-74,-50,-64,-58,-95,-72,-100,-100,-96,-99,-105,-104,-116,-89,-89,-89,-137,-127,-131,-133,-133,-134,-525,-525,-527,-173,-500,-488,-731,-729,-693,-576,-701,-679,-759,-736,-1827,-1827,-1825,-1780,-1522,-1381,-29978,-29979,-29980,-29981,-29981,-29982,-29980,-29970,-29980,-29981]} 1. e4 {[%emt 0:00:02][%cal Be2e4,Be4e5][%mdl 32]} c5 {[%emt 0:00:49]} 2. c3 {[%emt 0:00:05]} Nf6 {[%emt 0:00:03]} 3. e5 {[%emt 0:00:04]} Nd5 {[%emt 0:00:04]} 4. d4 {[%emt 0:00:04]} cxd4 {[%emt 0:00:04]} 5. Nf3 {[%emt 0:00:04]} d6 {[%emt 0:00:21]} 6. cxd4 {[%emt 0:00:06]} Nc6 {[%emt 0:00:04]} 7. Bc4 {[%emt 0:00:05]} dxe5 {[%emt 0:00:05]} 8. dxe5 {[%emt 0:00:05]} Be6 {[%emt 0:00:03][%cal Od5f4] B22: Sicilian: 2 c3.} 9. O-O {[%emt 0:02:12]} g6 {[%emt 0:00:29]} 10. Qe2 {[%emt 0:02:58]} Qc7 {[%emt 0:00:34] The position is equal.} 11. Rd1 {[%emt 0:03:13]} Rd8 {[%emt 0:00:50]} 12. Bd2 {[%emt 0:03:36]} (12. Na3 {is interesting.} a6 13. Qe4 Nb6 14. Be3) 12... Bg7 {[%emt 0:01:51]} 13. Nc3 {[%emt 0:04:14] [#]} Nxe5 $146 {[%emt 0:07:34]} (13... O-O {looks sharper.} 14. Rac1 Nxc3 15. Bxc3 Bxc4 16. Qxc4 e6) ({Predecessor:} 13... O-O 14. Qe4 Nxc3 15. Bxc3 Bxc4 16. Qxc4 e6 17. Qe2 Rxd1+ 18. Rxd1 Rd8 {½-½ (18) Chukanov,I (2287)-Voiculescu,F (2180) ICCF email 2011}) 14. Bxd5 {[%emt 0:03:13]} (14. Nxe5 Bxe5 15. Bxd5 Bxd5 16. Nxd5 Rxd5 17. Rac1) 14... Bxd5 {[%emt 0:01:43]} 15. Nxd5 {[%emt 0:03:23]} Rxd5 {[%emt 0:00:18]} 16. Be3 {[%emt 0:03:45]} Rxd1+ {[%emt 0:01:17]} 17. Rxd1 {[%emt 0:00:13]} Nxf3+ {[%emt 0:01:07]} 18. Qxf3 {[%emt 0:00:10]} O-O {[%emt 0:00:27]} 19. h3 {[%emt 0:03:19]} (19. Rc1 Qb8 20. Bf4) 19... b6 {[%emt 0:13:53]} (19... Bxb2 {seems wilder.} 20. Bxa7 Ra8 21. Qb3 Rxa7 22. Qxb2 Ra5) 20. Qe2 {[%emt 0:02:28]} Rd8 {[%emt 0:04:59]} 21. Rxd8+ {[%emt 0:03:13]} Qxd8 $17 {[%emt 0:00:05][%mdl 4096] Endgame KQB-KQB} 22. b4 {[%emt 0:01:27]} h5 {[%emt 0:04:41]} 23. a4 {[%emt 0:04:27]} Qd5 {[%emt 0:04:53]} 24. g3 {[%emt 0:03:49]} Bc3 {[%emt 0:12:17]} 25. b5 {[%emt 0:04:13]} (25. Qa6 $142 Bxb4 26. Qxa7) 25... Kg7 {[%emt 0:14:27] Black is more active.} 26. h4 {[%emt 0:04:19]} e5 {[%emt 0:06:07]} 27. Qc2 {[%emt 0:04:25]} Bd4 {[%emt 0:03:50] [#] White must now prevent ...Bxe3.} 28. Bg5 {[%emt 0:10:37][%mdl 8192] This move loses the game for White.} (28. Kh2 $17) 28... Qf3 $19 {[%emt 0:01:13]} 29. Kf1 {[%emt 0:00:52]} Qh1+ {[%emt 0:01:07]} 30. Ke2 {[%emt 0:00:07]} Bxf2 {[%emt 0:02:31]} 31. Qc6 {[%emt 0:03:08]} (31. Qc3 $142 Bd4 32. Qf3 Qh2+ 33. Ke1) 31... Qe1+ {[%emt 0:00:21]} 32. Kd3 {[%emt 0:00:06]} Qf1+ {[%emt 0:02:14]} 33. Kd2 {[%emt 0:01:39]} Bxg3 {[%emt 0:00:13]} 34. Kc2 {[%emt 0:00:28]} Qf5+ {[%emt 0:00:38]} 35. Kd1 {[%emt 0:00:29] [#]} Bxh4 $1 {[%emt 0:00:48] ( -> ...Qg4+)} 36. Bd2 {[%emt 0:00:32]} Qg4+ {[%emt 0:00:12]} 37. Kc1 {[%emt 0:00:08]} Qxa4 {[%emt 0:00:10]} 38. Qe8 {[%emt 0:00:13]} Qc4+ {[%emt 0:00:21] Black mates.} 39. Kb2 {[%emt 0:00:14]} Qe2 {[%emt 0:00:33]} 40. Kc1 {[%emt 0:00:22]} Be1 {[%emt 0:00:30]} 41. Bg5 {[%emt 0:30:13]} Qc4+ {[%emt 0:31:30]} 42. Kd1 {[%emt 0:01:00]} Qg4+ {[%emt 0:00:05] Weighted Error Value: White=0.82/Black=0.10 (very precise)} 0-1

[Event "FIDE WY-U16 Olympiad 2022"]
[Site "Nakhchivan"]
[Date "2022.10.06"]
[Round "5.18"]
[White "Shamatava, Nikolozi"]
[Black "Akin, Yagiz Cinar"]
[Result "0-1"]
[ECO "E62"]
[WhiteElo "1957"]
[BlackElo "2249"]
[Annotator "TA"]
[PlyCount "76"]
[EventDate "2022.10.02"]
[EventType "team-tourn"]
[EventCountry "AZE"]
[SourceTitle "playchess.com"]
[Source "ChessBase"]
[SourceQuality "1"]
[WhiteTeam "Georgia"]
[BlackTeam "Turkey"]
[WhiteTeamCountry "GEO"]
[BlackTeamCountry "TUR"]
[TimeControl "40/5400+30:1800+30"]

{[%evp 16,76,36,21,60,2,0,0,60,73,54,60,56,0,32,9,72,64,87,30,30,20,16,12,19,0,0,0,0,0,0,0,11,0,37,38,70,62,84,0,0,-8,0,0,0,0,0,-989,-988,-1110,-1106,-1089,-1085,-985,-689,-679,-679,-679,-672,-657,-640,-617,-617]} 1. d4 {[%emt 0:00:03]} Nf6 {[%emt 0:00:15]} 2. c4 {[%emt 0:00:05]} g6 {[%emt 0:00:16]} 3. g3 {[%emt 0:00:08]} Bg7 {[%emt 0:00:06]} 4. Bg2 {[%emt 0:00:10]} d6 {[%emt 0:00:06]} 5. Nc3 {[%emt 0:00:11]} O-O {[%emt 0:00:26]} 6. Nf3 {[%emt 0:00:04]} c6 {[%emt 0:00:30]} 7. O-O {[%emt 0:00:28]} Qa5 {[%emt 0:00:08] The old main line.} 8. e4 {[%emt 0:05:32]} e5 {[%emt 0:01:30]} 9. Re1 {[%emt 0:06:11]} Nbd7 {[%emt 0:16:34] E62: King's Indian: Fianchetto: 6...c6 and Panno Variation (6...Nc6) without ...a6.} 10. Qc2 {[%emt 0:06:58]} (10. d5) (10. d5 $14) 10... exd4 $11 {[%emt 0:07:51]} 11. Nxd4 {[%emt 0:00:22] [#]} Ng4 $146 {[%emt 0:12:17]} (11... Ne8 12. Be3 Ne5) (11... Re8 $11) ({Predecessor:} 11... Re8 12. Bf4 Ne5 13. Nb3 Qc7 14. Rad1 Nh5 15. Bxe5 dxe5 16. Qe2 Bf8 17. Nd2 Be6 {0-1 (56) Li,H-Tionko,E (1844) Wellington 2014}) 12. Rd1 $1 $14 {[%emt 0:05:31]} Nge5 {[%emt 0:17:36]} 13. b3 {[%emt 0:04:18]} Nc5 {[%emt 0:10:20]} 14. Bb2 {[%emt 0:10:12]} Qb6 {[%emt 0:02:04]} 15. Nce2 {[%emt 0:15:05]} Ncd3 {[%emt 0:10:26]} 16. Bc3 $16 {[%emt 0:00:15]} (16. Rxd3 Nxd3 17. Qxd3 c5 $11) 16... c5 {[%emt 0:06:27] [#]} 17. Nf3 {[%emt 0:03:12]} (17. Rxd3 $6 Nxd3 18. Qxd3 cxd4 19. Nxd4 Re8 $11) (17. Nf5 $1 $16 {Hoping for Ne7+.} gxf5 18. Rxd3) 17... Nxf3+ $1 $11 {[%emt 0:00:51]} 18. Bxf3 {[%emt 0:00:14]} Ne5 {[%emt 0:01:39][%cal Bd3e5,Be5c6,Bc6d4][%mdl 32]} 19. Bg2 {[%emt 0:00:11] f4 is the strong threat.} Bg4 {[%emt 0:01:44]} 20. f4 {[%emt 0:00:55]} Bxe2 {[%emt 0:00:04]} 21. Qxe2 {[%emt 0:00:10]} Nc6 {[%emt 0:00:02]} 22. Bxg7 {[%emt 0:02:13]} Kxg7 {[%emt 0:00:03]} 23. Rd5 {[%emt 0:02:03]} Nd4 {[%emt 0:00:50]} 24. Qd2 {[%emt 0:02:10]} f5 {[%emt 0:06:16]} 25. exf5 {[%emt 0:05:54]} gxf5 {[%emt 0:00:55]} 26. Re1 {[%emt 0:03:02]} Rae8 {[%emt 0:00:59] [#] Inhibits Re7+.} 27. Re3 {[%emt 0:04:55]} (27. b4 $1 $16) 27... Qd8 {[%emt 0:01:49]} 28. g4 {[%emt 0:02:48]} Rxe3 {[%emt 0:01:32]} 29. Qxe3 {[%emt 0:00:54]} fxg4 {[%emt 0:00:38][%cal Of8f4] White must now prevent ...Rxf4!} 30. Rg5+ {[%emt 0:07:46][%mdl 64] Discovered Attack} Kh8 {[%emt 0:00:03]} 31. Qe4 {[%emt 0:02:37][%mdl 8192] [#]} (31. Rxg4 $11 Re8 32. Qf2 (32. Qc3 Qf6 $11)) 31... Rxf4 $3 $19 {[%emt 0:00:13][%mdl 512] Black is clearly winning.} 32. Qd5 {[%emt 0:00:44]} (32. Rxg4 Rxe4) 32... Qf8 {[%emt 0:00:59] ( -> ...Ne2+)} 33. h3 {[%emt 0:02:22]} Ne2+ {[%emt 0:00:29]} 34. Kh2 {[%emt 0:00:14]} g3+ {[%emt 0:00:03]} 35. Rxg3 {[%emt 0:00:05]} Nxg3 {[%emt 0:00:04]} 36. Kxg3 {[%emt 0:00:08]} Rd4 {[%emt 0:00:03][%csl Gd4][%cal Rf8f4] Against Qd2} 37. Qg5 {[%emt 0:00:23] Inhibits Qf4+.} Qg7 {[%emt 0:00:02]} 38. Qxg7+ {[%emt 0:00:06]} Kxg7 {[%emt 0:00:04] Weighted Error Value: White=0.45/Black=0.28 (precise)} 0-1

[Event "FIDE WY-U16 Olympiad 2022"]
[Site "Nakhchivan"]
[Date "2022.10.06"]
[Round "5.18"]
[White "Abdullabayli, Rajab"]
[Black "Chen, Rachel Ruoxuan"]
[Result "0-1"]
[ECO "C77"]
[WhiteElo "1547"]
[BlackElo "1805"]
[Annotator "NA RC COMBH"]
[PlyCount "112"]
[EventDate "2022.10.02"]
[EventType "team-tourn"]
[EventCountry "AZE"]
[SourceTitle "playchess.com"]
[Source "ChessBase"]
[SourceQuality "1"]
[WhiteTeam "Azerbaijan"]
[BlackTeam "Canada"]
[WhiteTeamCountry "AZE"]
[BlackTeamCountry "CAN"]
[TimeControl "40/5400+30:1800+30"]

1. e4 {[%emt 0:03:12]} e5 {[%emt 0:00:04]} 2. Nf3 {[%emt 0:00:03]} Nc6 {[%emt 0:00:04]} 3. Bb5 {[%emt 0:00:04]} a6 {[%emt 0:00:05]} 4. Ba4 {[%emt 0:00:04]} Nf6 {[%emt 0:00:07]} 5. d3 {[%emt 0:00:15]} Bc5 {[%emt 0:00:35]} 6. O-O {[%emt 0:00:23]} b5 {[%emt 0:00:48]} 7. Bb3 {[%emt 0:00:06]} d6 {[%emt 0:00:18]} 8. c3 {[%emt 0:00:40]} O-O {[%emt 0:00:45]} 9. Nbd2 {[%emt 0:01:53]} h6 {[%emt 0:08:01]} 10. Re1 {[%emt 0:01:53]} Re8 {[%emt 0:00:47]} 11. Nf1 {[%emt 0:00:08]} Be6 {[%emt 0:20:02]} 12. Ne3 $11 {[%emt 0:02:19]} d5 {[%emt 0:02:45]} 13. d4 {[%emt 0:08:57]} exd4 {[%emt 0:04:55]} 14. cxd4 {[%emt 0:00:07]} Bb4 {[%emt 0:01:20]} 15. exd5 {[%emt 0:00:14]} Nxd5 {[%emt 0:06:30]} 16. Bd2 {[%emt 0:01:52]} Bxd2 {[%emt 0:09:16]} 17. Qxd2 {[%emt 0:00:20]} Qd6 {[%emt 0:00:24]} 18. Ne5 {[%emt 0:03:16]} Nxe3 {[%emt 0:02:00]} 19. Qxe3 {[%emt 0:10:57]} Bxb3 {[%emt 0:04:31]} 20. Qxb3 {[%emt 0:00:18]} Nxe5 {[%emt 0:00:16]} 21. dxe5 {[%emt 0:00:07]} Rxe5 {[%emt 0:00:17]} 22. Red1 {[%emt 0:00:05]} Qe7 {[%emt 0:02:04]} 23. Rac1 {[%emt 0:02:01]} c5 {[%emt 0:02:29]} 24. a4 {[%emt 0:00:38]} bxa4 {[%emt 0:04:08]} 25. Qxa4 {[%emt 0:00:13]} Rb8 {[%emt 0:00:08]} 26. Qa3 {[%emt 0:05:46]} Re2 {[%emt 0:01:09]} 27. b3 {[%emt 0:01:22]} Qe6 {[%emt 0:04:24]} 28. Qxc5 {[%emt 0:03:58]} Rxb3 {[%emt 0:01:07]} 29. Qc4 {[%emt 0:03:39]} Qxc4 {[%emt 0:07:18]} 30. Rxc4 {[%emt 0:00:04]} Rb8 {[%emt 0:01:20]} 31. Ra4 {[%emt 0:00:41]} Ra8 {[%emt 0:00:15]} 32. Ra5 {[%emt 0:00:18]} Kf8 {[%emt 0:00:40]} 33. Kf1 {[%emt 0:00:52]} Re6 {[%emt 0:01:00]} 34. f3 {[%emt 0:02:28]} Ke7 {[%emt 0:01:24]} 35. Rb1 {[%emt 0:06:28]} Ra7 {[%emt 0:02:19]} 36. Kf2 {[%emt 0:01:13]} Kd7 {[%emt 0:01:47]} 37. g4 {[%emt 0:01:46]} Kc7 {[%emt 0:05:33]} 38. Kg3 {[%emt 0:01:35]} Rb6 {[%emt 0:00:51]} 39. Rc1+ {[%emt 0:00:20]} Kb7 {[%emt 0:00:51]} 40. Rac5 {[%emt 0:01:00]} a5 {[%emt 0:00:49]} 41. Ra1 {[%emt 0:30:05]} a4 {[%emt 0:32:39]} 42. Ra3 {[%emt 0:00:15]} Rb4 {[%emt 0:00:54]} 43. Rac3 {[%emt 0:00:40]} Ka6 {[%emt 0:00:00]} 44. Rd3 {[%emt 0:00:00]} Kb6 {[%emt 0:00:00]} 45. Rcc3 {[%emt 0:00:00]} Ka5 {[%emt 0:00:00]} 46. Rd5+ {[%emt 0:00:00]} Rb5 {[%emt 0:00:00]} 47. Rd4 {[%emt 0:00:00]} Rb3 {[%emt 0:00:00]} 48. Rcc4 {[%emt 0:00:00]} Kb5 {[%emt 0:00:00]} 49. Rc8 {[%emt 0:00:00]} a3 {[%emt 0:00:00]} 50. Rdc4 {[%emt 0:00:00]} Rb4 {[%emt 0:00:00]} 51. Rc2 {[%emt 0:02:54]} Ka4 {[%emt 0:00:00]} 52. Rc1 {[%emt 0:09:11]} Rb2 {[%emt 0:01:22]} 53. R8c4+ {[%emt 0:02:02]} Kb3 {[%emt 0:00:32]} 54. R4c3+ {[%emt 0:00:03]} Ka2 {[%emt 0:00:24]} 55. Re3 {[%emt 0:00:05]} Rab7 {[%emt 0:02:32]} 56. Kh3 {[%emt 0:00:37]} R7b3 {[%emt 0:00:41]} 0-1